fUST/lending_fUST_20240511
["ID","MTS","AMOUNT","RATE_DAILY","PERIOD"]
[326800517,1715381505318,-1818.74,0.00070136,120]
[326800518,1715381505328,-527.33,0.00070136,120]
[326800519,1715381505337,-500.0,0.00070136,120]
[326800520,1715381505348,-500.0,0.00070136,120]
[326800521,1715381505358,-500.0,0.00070136,120]
[326800522,1715381505367,-500.0,0.00070136,120]
[326800523,1715381505377,-1189.78,0.00070136,120]
[326800524,1715381505386,-580.1,0.00070136,120]
[326800525,1715381505395,-837.42,0.00070136,120]
[326800526,1715381505405,-599.74,0.00070136,120]
[326800527,1715381505414,-1366.53,0.00070136,7]
[326800528,1715381505428,-500.0,0.00070136,120]
[326800529,1715381505437,-549.67,0.00070136,120]
[326800530,1715381505447,-638.03,0.00070136,120]
[326800531,1715381505457,-9331.73,0.00070136,120]
[326800532,1715381505466,-500.0,0.00070136,120]
[326800533,1715381505475,-500.0,0.00070136,120]
[326800534,1715381505485,-500.0,0.00070136,120]
[326800535,1715381505494,-2272.92,0.00070136,120]
[326800536,1715381505503,-623.13,0.00070136,120]
[326800537,1715381505512,-500.0,0.00070136,120]
[326800538,1715381505521,-3952.33,0.00070136,120]
[326800539,1715381505530,-1021.55,0.00070136,120]
[326800540,1715381505539,-728.64,0.00070136,120]
[326800541,1715381505548,-7667.9,0.00070136,120]
[326800542,1715381505557,-570.68,0.00070136,120]
[326800543,1715381505567,-3673.96,0.00070136,120]
[326800544,1715381505575,-2110.2,0.00070136,120]
[326800545,1715381505585,-8336.17,0.00070136,120]
[326800546,1715381505593,-1410.23,0.00070136,120]
[326800547,1715381505603,-1154.88,0.00070136,120]
[326800548,1715381505613,-8703.16,0.00070136,120]
[326800549,1715381505622,-751.25,0.00070136,120]
[326800550,1715381505632,-536.24,0.00070136,120]
[326800551,1715381505642,-500.0,0.00070136,120]
[326800552,1715381505651,-522.1155857,0.00070136,120]
[326800553,1715381505661,-745.85,0.00070136,120]
[326800554,1715381505670,-1112.7,0.00070136,120]
[326800555,1715381505680,-3156.04,0.00070136,120]
[326800556,1715381505690,-1283.02,0.00070136,120]
[326800557,1715381505699,-1747.91,0.00070136,120]
[326800558,1715381505708,-383.0,0.00070136,120]
[326800559,1715381505717,-924.27,0.00070136,120]
[326800560,1715381505726,-585.25,0.00070136,120]
[326800561,1715381505736,-516.60469517,0.00070136,120]
[326800562,1715381505746,-790.87,0.00070136,120]
[326800563,1715381505755,-500.0,0.00070136,120]
[326800564,1715381505764,-1269.11,0.00070136,120]
[326800565,1715381505774,-5883.06,0.00070136,120]
[326800566,1715381505783,-1859.96,0.00070136,120]
[326800567,1715381505792,-500.0,0.00070136,120]
[326800568,1715381505802,-1701.09,0.00070136,120]
[326800569,1715381505812,-1691.53,0.00070136,120]
[326800570,1715381505821,-632.32,0.00070136,60]
[326800571,1715381505831,-3991.97,0.00070136,120]
[326800572,1715381505840,-592.96,0.00070136,120]
[326800573,1715381505850,-500.0,0.00070136,120]
[326800574,1715381505860,-783.68,0.00070136,120]
[326800575,1715381505870,-4891.99,0.00070136,21]
[326800576,1715381505879,-2531.38,0.00070136,120]
[326800577,1715381505888,-500.0,0.00070136,120]
[326800578,1715381505898,-500.0,0.00070136,120]
[326800579,1715381505907,-2025.54,0.00070136,120]
[326800580,1715381505916,-906.96,0.00070136,120]
[326800581,1715381505925,-47405.75,0.00070136,120]
[326800582,1715381505935,-2056.13,0.00070136,120]
[326800583,1715381505944,-643.51,0.00070136,120]
[326800584,1715381505953,-852.8,0.00070136,120]
[326800585,1715381505963,-8527.55,0.00070136,120]
[326800586,1715381505973,-972.54,0.00070136,120]
[326800587,1715381505982,-3524.89,0.00070136,2]
[326800588,1715381505991,-546.11,0.00070136,120]
[326800589,1715381506000,-1320.33,0.00070136,2]
[326800590,1715381506010,-560.85,0.00070136,120]
[326800591,1715381506020,-715.77,0.00070136,120]
[326800592,1715381506031,-728.84,0.00070136,120]
[326800593,1715381506040,-1524.6,0.00070136,120]
[326800594,1715381506049,-500.0,0.00070136,120]
[326800595,1715381506058,-2617.66,0.00070136,120]
[326800596,1715381506068,-1552.09,0.00070136,120]
[326800597,1715381506077,-1408.03,0.00070136,120]
[326800598,1715381506086,-709.54,0.00070136,120]
[326800599,1715381506095,-2955.83,0.00070136,120]
[326800600,1715381506105,-500.0,0.00070136,120]
[326800601,1715381506114,-679.75,0.00070136,120]
[326800602,1715381506123,-525.15,0.00070136,120]
[326800603,1715381506133,-671.41,0.00070136,120]
[326800604,1715381506142,-17679.9,0.00070136,120]
[326800605,1715381506150,-1500.0,0.00070136,120]
[326800606,1715381506160,-4314.35,0.00070136,120]
[326800607,1715381506169,-680.13,0.00070136,120]
[326800608,1715381506182,-500.0,0.00070136,120]
[326800609,1715381506191,-9229.8,0.00070136,120]
[326800610,1715381506201,-990.56,0.00070136,120]
[326800611,1715381506211,-500.0,0.00070136,120]
[326800612,1715381506221,-1953.0,0.00070136,120]
[326800613,1715381506230,-415.61918448,0.00070136,120]
[326800614,1715381506239,-1273.71,0.00070136,120]
[326800615,1715381506248,-510.44,0.00070136,2]
[326800616,1715381506261,-1389.39,0.00070136,120]
[326800617,1715381506271,-300.0,0.00070136,7]
[326800618,1715381506280,-3744.03,0.00070136,120]
[326800619,1715381506289,-1011.1,0.00070136,120]
[326800620,1715381506298,-650.98,0.00070136,120]
[326800621,1715381506307,-500.0,0.00070136,120]
[326800622,1715381506316,-150.0,0.00070421,2]
[326800623,1715381506326,-1412.8469889,0.00070445,120]
[326800624,1715381506335,-150.97189535,0.0007049,120]
[326800625,1715381506344,-1412.8469889,0.0007053,120]
[326800626,1715381506353,-151.0,0.0007063,120]
[326800627,1715381506362,-1798.14077635,0.00070653,120]
[326800628,1715381506370,-169.25395516,0.00070762,120]
[326800629,1715381506379,-974.14542008,0.00070871,120]
[326800630,1715381506388,-1798.14077635,0.00070885,120]
[326800631,1715381506396,-5000.0,0.000709,120]
[326800632,1715381506405,-281.46466623,0.0007098,2]
[326800633,1715381506414,-602.21,0.00071232,120]
[326800634,1715381506423,-485.48377871,0.00071232,120]
[326800635,1715381506432,-500.0,0.00071232,120]
[326800636,1715381506441,-1165.04,0.00071232,120]
[326800637,1715381506452,-524.69264379,0.00071232,120]
[326800638,1715381506463,-506.30579868,0.00071232,7]
[326800639,1715381506472,-549.89,0.00071232,120]
[326800640,1715381506481,-156.30662107,0.00071232,120]
[326800641,1715381506491,-513.82884973,0.00071232,120]
[326800642,1715381506500,-562.80369204,0.00071232,120]
[326800643,1715381506509,-2148.21,0.00071232,120]
[326800644,1715381506519,-609.89,0.00071232,120]
[326800645,1715381506528,-500.0,0.00071232,120]
[326800646,1715381506537,-521.55125882,0.00071232,120]
[326800647,1715381506546,-500.0,0.00071232,120]
[326800648,1715381506556,-541.11,0.00071232,120]
[326800649,1715381506565,-574.68,0.00071232,120]
[326800650,1715381506574,-1271.67,0.00071232,7]
[326800651,1715381506583,-1161.06,0.00071232,120]
[326800652,1715381506592,-500.0,0.00071232,120]
[326800653,1715381506602,-664.96,0.00071232,120]
[326800654,1715381506611,-606.82,0.00071232,120]
[326800655,1715381506620,-2047.19,0.00071232,120]
[326800656,1715381506629,-500.0,0.00071232,120]
[326800657,1715381506638,-666.88,0.00071232,120]
[326800658,1715381506647,-2115.98,0.00071232,4]
[326800659,1715381506656,-744.8,0.00071232,120]
[326800660,1715381506665,-671.73,0.00071232,120]
[326800661,1715381506674,-1253.15,0.00071232,120]
[326800662,1715381506683,-2379.45,0.00071232,120]
[326800663,1715381506692,-591.68,0.00071232,120]
[326800664,1715381506701,-576.78,0.00071232,120]
[326800665,1715381506710,-534.42,0.00071232,120]
[326800666,1715381506719,-1078.44,0.00071232,120]
[326800667,1715381506728,-508.48544347,0.00071232,120]
[326800668,1715381506739,-1489.95,0.00071232,120]
[326800669,1715381506748,-500.0,0.00071232,120]
[326800670,1715381506757,-1505.02,0.00071232,120]
[326800671,1715381506766,-821.7,0.00071232,120]
[326800672,1715381506775,-847.21,0.00071232,120]
[326800673,1715381506784,-1744.14,0.00071232,2]
[326800674,1715381506793,-1487.03,0.00071232,120]
[326800675,1715381506802,-2725.02,0.00071232,120]
[326800676,1715381506811,-1524.58,0.00071232,120]
[326800677,1715381506820,-621.58,0.00071232,120]
[326800678,1715381506829,-550.87,0.00071232,120]
[326800679,1715381506839,-670.43,0.00071232,120]
[326800680,1715381506848,-1135.37,0.00071232,120]
[326800681,1715381506858,-515.4,0.00071232,120]
[326800682,1715381506867,-700.54,0.00071232,120]
[326800683,1715381506877,-565.96,0.00071232,120]
[326800684,1715381506887,-2668.96,0.00071232,120]
[326800685,1715381506896,-571.02,0.00071232,120]
[326800686,1715381506905,-500.0,0.00071232,120]
[326800687,1715381506914,-500.0,0.00071232,120]
[326800688,1715381506923,-820.35,0.00071232,120]
[326800689,1715381506932,-501.21,0.00071232,120]
[326800690,1715381506942,-522.98474268,0.00071232,120]
[326800691,1715381506951,-598.13,0.00071232,120]
[326800692,1715381506960,-967.26,0.00071232,120]
[326800693,1715381506969,-819.54,0.00071232,120]
[326800694,1715381506979,-620.58,0.00071232,120]
[326800695,1715381506988,-288.32282369,0.00071232,120]
[326800696,1715381506998,-594.58,0.00071232,120]
[326800697,1715381507006,-236.14960922,0.00071232,120]
[326800698,1715381507015,-819.92,0.00071232,120]
[326800699,1715381507024,-678.91,0.00071232,120]
[326800700,1715381507033,-517.81313197,0.00071232,120]
[326800701,1715381507042,-610.7,0.00071232,120]
[326800702,1715381507051,-648.3,0.00071232,120]
[326800703,1715381507060,-411.10762815,0.00071232,120]
[326800704,1715381507069,-500.0,0.00071232,120]
[326800705,1715381507078,-873.9,0.00071232,120]
[326800706,1715381507087,-780.28,0.00071232,120]
[326800707,1715381507096,-2756.4,0.00071232,120]
[326800708,1715381507106,-1210.86,0.00071232,120]
[326800709,1715381507115,-1070.89,0.00071232,120]
[326800710,1715381507124,-1070.51,0.00071232,120]
[326800711,1715381507134,-581.52374507,0.00071232,120]
[326800712,1715381507143,-757.61,0.00071232,120]
[326800713,1715381507152,-4210.69,0.00071232,120]
[326800714,1715381507162,-2993.37,0.00071232,120]
[326800715,1715381507172,-500.0,0.00071232,120]
[326800716,1715381507184,-551.15,0.00071232,120]
[326800717,1715381507193,-500.0,0.00071232,120]
[326800718,1715381507203,-500.0,0.00071232,120]
[326800719,1715381507212,-500.0,0.00071232,120]
[326800720,1715381507222,-500.0,0.00071232,120]
[326800721,1715381507232,-540.89560603,0.00071232,120]
[326800722,1715381507242,-733.98,0.00071232,120]
[326800723,1715381507251,-500.0,0.00071232,120]
[326800724,1715381507264,-4672.91,0.00071232,120]
[326800725,1715381507273,-1818.74,0.00071232,120]
[326800726,1715381507283,-527.33,0.00071232,120]
[326800727,1715381507292,-570.84328548,0.00071232,120]
[326800728,1715381507301,-500.0,0.00071232,120]
[326800729,1715381507310,-249.00346794,0.00071232,120]
[326800730,1715381507319,-500.0,0.00071232,120]
[326800731,1715381507328,-1189.78,0.00071232,120]
[326800732,1715381507337,-580.1,0.00071232,120]
[326800733,1715381507346,-837.42,0.00071232,120]
[326800734,1715381507355,-599.74,0.00071232,120]
[326800735,1715381507364,-1366.53,0.00071232,7]
[326800736,1715381507373,-500.0,0.00071232,120]
[326800737,1715381507382,-549.67,0.00071232,120]
[326800738,1715381507391,-9331.73,0.00071232,120]
[326800739,1715381507400,-500.0,0.00071232,120]
[326800740,1715381507409,-638.03,0.00071232,120]
[326800741,1715381507418,-500.0,0.00071232,120]
[326800742,1715381507427,-528.07013271,0.00071232,120]
[326800743,1715381507436,-2272.92,0.00071232,120]
[326800744,1715381507446,-623.13,0.00071232,120]
[326800745,1715381507455,-500.0,0.00071232,120]
[326800746,1715381507464,-3952.33,0.00071232,120]
[326800747,1715381507473,-1021.55,0.00071232,120]
[326800748,1715381507482,-728.64,0.00071232,120]
[326800749,1715381507491,-7667.9,0.00071232,120]
[326800750,1715381507500,-570.68,0.00071232,120]
[326800751,1715381507509,-3673.96,0.00071232,120]
[326800752,1715381507517,-2110.2,0.00071232,120]
[326800753,1715381507526,-8336.17,0.00071232,120]
[326800754,1715381507535,-1410.23,0.00071232,120]
[326800755,1715381507544,-1154.88,0.00071232,120]
[326800756,1715381507554,-8703.16,0.00071232,120]
[326800757,1715381507563,-751.25,0.00071232,120]
[326800758,1715381507572,-536.24,0.00071232,120]
[326800759,1715381507580,-500.0,0.00071232,120]
[326800760,1715381507590,-745.85,0.00071232,120]
[326800761,1715381507599,-1112.7,0.00071232,120]
[326800762,1715381507609,-3156.04,0.00071232,120]
[326800763,1715381507618,-1283.02,0.00071232,120]
[326800764,1715381507627,-1747.91,0.00071232,120]
[326800765,1715381507636,-924.27,0.00071232,120]
[326800766,1715381507645,-585.25,0.00071232,120]
[326800767,1715381507655,-790.87,0.00071232,120]
[326800768,1715381507664,-500.0,0.00071232,120]
[326800769,1715381507674,-1269.11,0.00071232,120]
[326800770,1715381507683,-5883.06,0.00071232,120]
[326800771,1715381507692,-1859.96,0.00071232,120]
[326800772,1715381507701,-500.0,0.00071232,120]
[326800773,1715381507710,-1701.09,0.00071232,120]
[326800774,1715381507720,-1691.53,0.00071232,120]
[326800775,1715381507729,-632.32,0.00071232,60]
[326800776,1715381507740,-3991.97,0.00071232,120]
[326800777,1715381507749,-592.96,0.00071232,120]
[326800778,1715381507758,-500.0,0.00071232,120]
[326800779,1715381507767,-783.68,0.00071232,120]
[326800780,1715381507777,-2531.38,0.00071232,120]
[326800781,1715381507786,-4891.99,0.00071232,21]
[326800782,1715381507795,-500.0,0.00071232,120]
[326800783,1715381507804,-500.0,0.00071232,120]
[326800784,1715381507814,-2025.54,0.00071232,120]
[326800785,1715381507823,-906.96,0.00071232,120]
[326800786,1715381507833,-47405.75,0.00071232,120]
[326800787,1715381507842,-2056.13,0.00071232,120]
[326800788,1715381507851,-643.51,0.00071232,120]
[326800789,1715381507862,-852.8,0.00071232,120]
[326800790,1715381507873,-8527.55,0.00071232,120]
[326800791,1715381507882,-972.54,0.00071232,120]
[326800792,1715381507891,-3524.89,0.00071232,2]
[326800793,1715381507900,-546.11,0.00071232,120]
[326800794,1715381507909,-1320.33,0.00071232,2]
[326800795,1715381508053,-560.85,0.00071232,120]
[326800796,1715381508063,-728.84,0.00071232,120]
[326800797,1715381508073,-715.77,0.00071232,120]
[326800798,1715381508083,-1524.6,0.00071232,120]
[326800799,1715381508092,-516.02322945,0.00071232,120]
[326800800,1715381508101,-2617.66,0.00071232,120]
[326800801,1715381508111,-1552.09,0.00071232,120]
[326800802,1715381508121,-1408.03,0.00071232,120]
[326800803,1715381508130,-709.54,0.00071232,120]
[326800804,1715381508140,-2955.83,0.00071232,120]
[326800805,1715381508150,-500.0,0.00071232,120]
[326800806,1715381508159,-679.75,0.00071232,120]
[326800807,1715381508169,-525.15,0.00071232,120]
[326800808,1715381508182,-671.41,0.00071232,120]
[326800809,1715381508192,-17679.9,0.00071232,120]
[326800810,1715381508201,-1500.0,0.00071232,120]
[326800811,1715381508210,-4314.35,0.00071232,120]
[326800812,1715381508221,-680.13,0.00071232,120]
[326800813,1715381508230,-500.0,0.00071232,120]
[326800814,1715381508241,-9229.8,0.00071232,120]
[326800815,1715381508251,-990.56,0.00071232,120]
[326800816,1715381508263,-500.0,0.00071232,120]
[326800817,1715381508274,-1953.0,0.00071232,120]
[326800818,1715381508284,-1273.71,0.00071232,120]
[326800819,1715381508293,-510.44,0.00071232,2]
[326800820,1715381508302,-1389.39,0.00071232,120]
[326800821,1715381508312,-300.0,0.00071232,7]
[326800822,1715381508321,-3744.03,0.00071232,120]
[326800823,1715381508331,-1011.1,0.00071232,120]
[326800824,1715381508342,-650.98,0.00071232,120]
[326800825,1715381508352,-557.0,0.00071331,120]
[326800826,1715381508362,-557.0,0.00071331,120]
[326800827,1715381508371,-1412.8469889,0.00071608,120]
[326800828,1715381508380,-974.14542008,0.00071616,120]
[326800829,1715381508389,-159.702122,0.00071781,120]
[326800830,1715381508399,-1412.8469889,0.0007182,120]
[326800831,1715381508409,-150.97189535,0.00071932,120]
[326800832,1715381508418,-150.97189535,0.00071963,120]
[326800833,1715381508428,-1000.0,0.00072,120]
[326800834,1715381508438,-3000.0,0.00072,120]
[326800835,1715381508448,-3000.0,0.00072,120]
[326800836,1715381508457,-3000.0,0.00072,120]
[326800837,1715381508466,-3000.0,0.00072,120]
[326800838,1715381508475,-3000.0,0.00072,120]
[326800839,1715381508485,-3000.0,0.00072,120]
[326800840,1715381508494,-3000.0,0.00072,120]
[326800841,1715381508503,-3000.0,0.00072,120]
[326800842,1715381508512,-3000.0,0.00072,120]
[326800843,1715381508521,-3000.0,0.00072,120]
[326800844,1715381508532,-152.87482911,0.00072161,120]
[326800845,1715381508542,-602.21,0.00072328,120]
[326800846,1715381508551,-500.0,0.00072328,120]
[326800847,1715381508561,-1165.04,0.00072328,120]
[326800848,1715381508570,-549.89,0.00072328,120]
[326800849,1715381508579,-2148.21,0.00072328,120]
[326800850,1715381508588,-609.89,0.00072328,120]
[326800851,1715381508597,-500.0,0.00072328,120]
[326800852,1715381508607,-500.0,0.00072328,120]
[326800853,1715381508615,-541.11,0.00072328,120]
[326800854,1715381508625,-574.68,0.00072328,120]
[326800855,1715381508634,-1271.67,0.00072328,7]
[326800856,1715381508643,-1161.06,0.00072328,120]
[326800857,1715381508652,-500.0,0.00072328,120]
[326800858,1715381508661,-664.96,0.00072328,120]
[326800859,1715381508671,-606.82,0.00072328,120]
[326800860,1715381508680,-2047.19,0.00072328,120]
[326800861,1715381508689,-500.0,0.00072328,120]
[326800862,1715381508699,-666.88,0.00072328,120]
[326800863,1715381508708,-2115.98,0.00072328,4]
[326800864,1715381508718,-744.8,0.00072328,120]
[326800865,1715381508727,-671.73,0.00072328,120]
[326800866,1715381508736,-1253.15,0.00072328,120]
[326800867,1715381508746,-2379.45,0.00072328,120]
[326800868,1715381508755,-591.68,0.00072328,120]
[326800869,1715381508764,-576.78,0.00072328,120]
[326800870,1715381508774,-534.42,0.00072328,120]
[326800871,1715381508783,-1078.44,0.00072328,120]
[326800872,1715381508792,-1489.95,0.00072328,120]
[326800873,1715381508800,-500.0,0.00072328,120]
[326800874,1715381508810,-1505.02,0.00072328,120]
[326800875,1715381508819,-821.7,0.00072328,120]
[326800876,1715381508829,-847.21,0.00072328,120]
[326800877,1715381508838,-1744.14,0.00072328,2]
[326800878,1715381508847,-1487.03,0.00072328,120]
[326800879,1715381508856,-2725.02,0.00072328,120]
[326800880,1715381508866,-1524.58,0.00072328,120]
[326800881,1715381508875,-621.58,0.00072328,120]
[326800882,1715381508884,-550.87,0.00072328,120]
[326800883,1715381508893,-670.43,0.00072328,120]
[326800884,1715381508902,-1135.37,0.00072328,120]
[326800885,1715381508912,-515.4,0.00072328,120]
[326800886,1715381508921,-700.54,0.00072328,120]
[326800887,1715381508930,-565.96,0.00072328,120]
[326800888,1715381508939,-2668.96,0.00072328,120]
[326800889,1715381508948,-571.02,0.00072328,120]
[326800890,1715381508958,-500.0,0.00072328,120]
[326800891,1715381508967,-500.0,0.00072328,120]
[326800892,1715381508976,-820.35,0.00072328,120]
[326800893,1715381508987,-501.21,0.00072328,120]
[326800894,1715381508996,-598.13,0.00072328,120]
[326800895,1715381509005,-967.26,0.00072328,120]
[326800896,1715381509014,-819.54,0.00072328,120]
[326800897,1715381509023,-620.58,0.00072328,120]
[326800898,1715381509032,-594.58,0.00072328,120]
[326800899,1715381509042,-819.92,0.00072328,120]
[326800900,1715381509050,-678.91,0.00072328,120]
[326800901,1715381509060,-610.7,0.00072328,120]
[326800902,1715381509069,-648.3,0.00072328,120]
[326800903,1715381509078,-500.0,0.00072328,120]
[326800904,1715381509087,-873.9,0.00072328,120]
[326800905,1715381509096,-780.28,0.00072328,120]
[326800906,1715381509106,-2756.4,0.00072328,120]
[326800907,1715381509115,-1210.86,0.00072328,120]
[326800908,1715381509125,-1070.89,0.00072328,120]
[326800909,1715381509134,-1070.51,0.00072328,120]
[326800910,1715381509144,-757.61,0.00072328,120]
[326800911,1715381509154,-4210.69,0.00072328,120]
[326800912,1715381509163,-2993.37,0.00072328,120]
[326800913,1715381509172,-551.15,0.00072328,120]
[326800914,1715381509185,-733.98,0.00072328,120]
[326800915,1715381509194,-500.0,0.00072328,120]
[326800916,1715381509204,-4672.91,0.00072328,120]
[326800917,1715381509215,-1818.74,0.00072328,120]
[326800918,1715381509224,-527.33,0.00072328,120]
[326800919,1715381509233,-500.0,0.00072328,120]
[326800920,1715381509243,-500.0,0.00072328,120]
[326800921,1715381509252,-1189.78,0.00072328,120]
[326800922,1715381509263,-580.1,0.00072328,120]
[326800923,1715381509272,-837.42,0.00072328,120]
[326800924,1715381509281,-599.74,0.00072328,120]
[326800925,1715381509291,-1366.53,0.00072328,7]
[326800926,1715381509300,-500.0,0.00072328,120]
[326800927,1715381509309,-549.67,0.00072328,120]
[326800928,1715381509318,-9331.73,0.00072328,120]
[326800929,1715381509327,-294.3,0.00072328,120]
[326800930,1715381509336,-638.03,0.00072328,120]
[326800931,1715381509345,-500.0,0.00072328,120]
[326800932,1715381509355,-2272.92,0.00072328,120]
[326800933,1715381509364,-623.13,0.00072328,120]
[326800934,1715381509374,-500.0,0.00072328,120]
[326800935,1715381509383,-3952.33,0.00072328,120]
[326800936,1715381509392,-1021.55,0.00072328,120]
[326800937,1715381509401,-728.64,0.00072328,120]
[326800938,1715381509410,-7667.9,0.00072328,120]
[326800939,1715381509419,-570.68,0.00072328,120]
[326800940,1715381509428,-3673.96,0.00072328,120]
[326800941,1715381509437,-2110.2,0.00072328,120]
[326800942,1715381509446,-8336.17,0.00072328,120]
[326800943,1715381509455,-1410.23,0.00072328,120]
[326800944,1715381509464,-1154.88,0.00072328,120]
[326800945,1715381509473,-8703.16,0.00072328,120]
[326800946,1715381509482,-751.25,0.00072328,120]
[326800947,1715381509491,-536.24,0.00072328,120]
[326800948,1715381509500,-500.0,0.00072328,120]
[326800949,1715381509509,-745.85,0.00072328,120]
[326800950,1715381509518,-1112.7,0.00072328,120]
[326800951,1715381509527,-3156.04,0.00072328,120]
[326800952,1715381509536,-1283.02,0.00072328,120]
[326800953,1715381509544,-1747.91,0.00072328,120]
[326800954,1715381509553,-924.27,0.00072328,120]
[326800955,1715381509562,-585.25,0.00072328,120]
[326800956,1715381509571,-790.87,0.00072328,120]
[326800957,1715381509580,-500.0,0.00072328,120]
[326800958,1715381509589,-1269.11,0.00072328,120]
[326800959,1715381509597,-5883.06,0.00072328,120]
[326800960,1715381509606,-1859.96,0.00072328,120]
[326800961,1715381509615,-500.0,0.00072328,120]
[326800962,1715381509624,-1701.09,0.00072328,120]
[326800963,1715381509633,-1691.53,0.00072328,120]
[326800964,1715381509642,-632.32,0.00072328,60]
[326800965,1715381509651,-592.96,0.00072328,120]
[326800966,1715381509659,-3991.97,0.00072328,120]
[326800967,1715381509668,-500.0,0.00072328,120]
[326800968,1715381509677,-783.68,0.00072328,120]
[326800969,1715381509686,-4891.99,0.00072328,21]
[326800970,1715381509695,-500.0,0.00072328,120]
[326800971,1715381509704,-2531.38,0.00072328,120]
[326800972,1715381509713,-500.0,0.00072328,120]
[326800973,1715381509722,-2025.54,0.00072328,120]
[326800974,1715381509731,-906.96,0.00072328,120]
[326800975,1715381509740,-47405.75,0.00072328,120]
[326800976,1715381509750,-2056.13,0.00072328,120]
[326800977,1715381509759,-643.51,0.00072328,120]
[326800978,1715381509769,-852.8,0.00072328,120]
[326800979,1715381509779,-8527.55,0.00072328,120]
[326800980,1715381509788,-972.54,0.00072328,120]
[326800981,1715381509798,-546.11,0.00072328,120]
[326800982,1715381509807,-3524.89,0.00072328,2]
[326800983,1715381509816,-1320.33,0.00072328,2]
[326800984,1715381509826,-560.85,0.00072328,120]
[326800985,1715381509835,-715.77,0.00072328,120]
[326800986,1715381509844,-728.84,0.00072328,120]
[326800987,1715381509853,-1524.6,0.00072328,120]
[326800988,1715381509863,-2617.66,0.00072328,120]
[326800989,1715381509872,-1552.09,0.00072328,120]
[326800990,1715381509881,-1408.03,0.00072328,120]
[326800991,1715381509890,-709.54,0.00072328,120]
[326800992,1715381509899,-2955.83,0.00072328,120]
[326800993,1715381509908,-500.0,0.00072328,120]
[326800994,1715381509917,-679.75,0.00072328,120]
[326800995,1715381509927,-525.15,0.00072328,120]
[326800996,1715381509936,-671.41,0.00072328,120]
[326800997,1715381509945,-17679.9,0.00072328,120]
[326800998,1715381509954,-1500.0,0.00072328,120]
[326800999,1715381509964,-4314.35,0.00072328,120]
[326801000,1715381509973,-680.13,0.00072328,120]
[326801001,1715381509982,-446.02062233,0.00072328,120]
[326801002,1715381509992,-9229.8,0.00072328,120]
[326801003,1715381510001,-990.56,0.00072328,120]
[326801004,1715381510011,-422.69404949,0.00072328,120]
[326801005,1715381510019,-1953.0,0.00072328,120]
[326801006,1715381510029,-1273.71,0.00072328,120]
[326801007,1715381510039,-510.44,0.00072328,2]
[326801008,1715381510049,-1389.39,0.00072328,120]
[326801009,1715381510059,-300.0,0.00072328,7]
[326801010,1715381510068,-3744.03,0.00072328,120]
[326801011,1715381510078,-1011.1,0.00072328,120]
[326801012,1715381510088,-650.98,0.00072328,120]
[326801013,1715381510098,-151.0,0.00072356,120]
[326801014,1715381510108,-974.14542008,0.00072395,120]
[326801015,1715381510119,-160.0,0.00072697,3]
[326801016,1715381510129,-152.87482911,0.00072719,120]